fUSD/lending_fUSD_20260516
["ID","MTS","AMOUNT","RATE_DAILY","PERIOD"]
[422350241,1778862646000,-150.0,0.0001438,2]
[422350234,1778862646000,-150.0,0.00014344,2]
[422350235,1778862646000,-150.0,0.00014344,2]
[422350233,1778862646000,-150.0,0.00014344,2]
[422350239,1778862646000,-150.0,0.00014367,2]
[422350238,1778862646000,-291.45559293,0.00014366,2]
[422350228,1778862646000,-150.0,0.0001432,2]
[422350258,1778862646000,-500.0,0.00014399,2]
[422350298,1778862646000,-150.0,0.0001453,2]
[422350265,1778862646000,-500.0,0.00014399,2]
[422350291,1778862646000,-500.0,0.00014489,2]
[422350295,1778862646000,-291.45559293,0.00014517,2]
[422350290,1778862646000,-150.0,0.00014487,2]
[422350292,1778862646000,-150.0,0.00014498,2]
[422350294,1778862646000,-150.0,0.00014503,2]
[422350293,1778862646000,-291.45559293,0.00014502,2]
[422350297,1778862646000,-150.0,0.00014522,2]
[422350299,1778862646000,-291.45559293,0.00014532,2]
[422350303,1778862646000,-150.0,0.00014558,2]
[422350300,1778862646000,-291.45559293,0.00014547,2]
[422350304,1778862646000,-150.0,0.00014558,2]
[422350301,1778862646000,-500.0,0.00014548,2]
[422350302,1778862646000,-150.0,0.00014551,2]
[422350305,1778862646000,-150.0,0.00014558,2]
[422350306,1778862646000,-291.45559293,0.00014562,2]
[422350309,1778862646000,-150.0,0.00014563,2]
[422350262,1778862646000,-500.0,0.00014399,2]
[422350289,1778862646000,-150.0,0.00014487,2]
[422350288,1778862646000,-291.45559293,0.00014487,2]
[422350296,1778862646000,-150.0,0.00014522,2]
[422350287,1778862646000,-150.0,0.00014487,2]
[422350264,1778862646000,-500.0,0.00014399,2]
[422350286,1778862646000,-291.45559293,0.00014472,2]
[422350263,1778862646000,-500.0,0.00014399,2]
[422350270,1778862646000,-150.0,0.000144,2]
[422350267,1778862646000,-267.18441959,0.00014399,2]
[422350273,1778862646000,-150.0,0.00014406,2]
[422350274,1778862646000,-291.45559293,0.00014411,2]
[422350275,1778862646000,-150.0,0.00014415,2]
[422350276,1778862646000,-150.0,0.00014415,2]
[422350272,1778862646000,-150.0,0.00014404,2]
[422350278,1778862646000,-150.0,0.00014432,2]
[422350277,1778862646000,-291.45559293,0.00014426,2]
[422350283,1778862646000,-150.0,0.00014455,2]
[422350280,1778862646000,-150.0,0.00014451,2]
[422350279,1778862646000,-291.45559293,0.00014441,2]
[422350284,1778862646000,-291.45559293,0.00014456,2]
[422350282,1778862646000,-150.0,0.00014451,2]
[422350281,1778862646000,-150.0,0.00014451,2]
[422350285,1778862646000,-150.0,0.00014465,2]
[422350343,1778862647000,-150.0,0.00014701,2]
[422350341,1778862647000,-291.45559293,0.00014699,2]
[422350342,1778862647000,-150.0,0.00014701,2]
[422350350,1778862647000,-291.45559293,0.00014744,2]
[422350333,1778862647000,-150.0,0.00014665,2]
[422350336,1778862647000,-291.45559293,0.00014668,2]
[422350335,1778862647000,-150.0,0.00014665,2]
[422350345,1778862647000,-150.0,0.00014726,2]
[422350334,1778862647000,-150.0,0.00014665,2]
[422350344,1778862647000,-291.45559293,0.00014714,2]
[422350354,1778862647000,-291.45559293,0.00014759,2]
[422350348,1778862647000,-150.0,0.00014737,2]
[422350349,1778862647000,-150.0,0.00014737,2]
[422350346,1778862647000,-291.45559293,0.00014729,2]
[422350353,1778862647000,-150.0,0.00014758,2]
[422350351,1778862647000,-150.0,0.00014745,2]
[422350352,1778862647000,-180.27312146,0.00014758,2]
[422350360,1778862647000,-291.45559293,0.0001479,2]
[422350357,1778862647000,-150.0,0.00014772,2]
[422350358,1778862647000,-150.0,0.00014772,2]
[422350337,1778862647000,-291.45559293,0.00014684,2]
[422350347,1778862647000,-150.0,0.00014737,2]
[422350339,1778862647000,-150.0,0.00014693,2]
[422350313,1778862647000,-150.0,0.00014594,2]
[422350330,1778862647000,-150.0,0.00014653,2]
[422350361,1778862647000,-150.0,0.00014791,2]
[422350310,1778862647000,-150.0,0.0001457,2]
[422350312,1778862647000,-291.45559293,0.00014593,2]
[422350311,1778862647000,-291.45559293,0.00014578,2]
[422350319,1778862647000,-234.66857943,0.0001461,2]
[422350316,1778862647000,-150.0,0.000146,2]
[422350314,1778862647000,-150.0,0.00014594,2]
[422350315,1778862647000,-150.0,0.00014595,2]
[422350317,1778862647000,-1169.90635753,0.00014603,2]
[422350318,1778862647000,-291.45559293,0.00014608,2]
[422350340,1778862647000,-150.0,0.00014696,2]
[422350320,1778862647000,-500.0,0.0001461,2]
[422350325,1778862647000,-150.0,0.00014629,2]
[422350324,1778862647000,-150.0,0.00014629,2]
[422350322,1778862647000,-291.45559293,0.00014623,2]
[422350328,1778862647000,-500.0,0.00014651,7]
[422350327,1778862647000,-150.0,0.00014648,2]
[422350329,1778862647000,-881.05,0.00014651,2]
[422350326,1778862647000,-291.45559293,0.00014638,2]
[422350331,1778862647000,-291.45559293,0.00014653,2]
[422350332,1778862647000,-150.0,0.00014661,2]
[422350338,1778862647000,-150.0,0.00014687,2]
[422350321,1778862647000,-2227.22828863,0.00014617,2]
[422350356,1778862647000,-150.0,0.00014772,2]
[422350323,1778862647000,-150.0,0.00014628,2]
[422350359,1778862647000,-291.45559293,0.00014774,2]
[422350389,1778862647000,-2308.61191113,0.000149,2]
[422350388,1778862647000,-375.04073888,0.000149,2]
[422350390,1778862647000,-2227.22828863,0.000149,2]
[422350387,1778862647000,-25000.0,0.000149,3]
[422350394,1778862647000,-150.0,0.00014915,2]
[422350393,1778862647000,-150.0,0.00014915,2]
[422350396,1778862647000,-165.79056391,0.00014925,2]
[422350395,1778862647000,-150.0,0.00014921,2]
[422350409,1778862647000,-1000.0,0.0001497,2]
[422350397,1778862647000,-291.45559293,0.00014926,2]
[422350391,1778862647000,-150.0,0.00014903,2]
[422350398,1778862647000,-150.0,0.00014938,2]
[422350399,1778862647000,-291.45559293,0.00014941,2]
[422350402,1778862647000,-150.0,0.00014954,2]
[422350404,1778862647000,-469.94,0.00014959,2]
[422350401,1778862647000,-150.0,0.00014951,2]
[422350406,1778862647000,-1000.0,0.0001497,2]
[422350405,1778862647000,-1000.0,0.0001497,2]
[422350407,1778862647000,-1000.0,0.0001497,2]
[422350408,1778862647000,-500.0,0.0001497,2]
[422350410,1778862647000,-500.0,0.0001497,2]
[422350355,1778862647000,-500.0,0.00014763,2]
[422350400,1778862647000,-150.0,0.00014951,2]
[422350392,1778862647000,-291.45559293,0.00014911,2]
[422350403,1778862647000,-291.45559293,0.00014956,2]
[422350386,1778862647000,-1169.90635753,0.000149,2]
[422350385,1778862647000,-291.45559293,0.00014895,2]
[422350363,1778862647000,-291.45559293,0.00014805,2]
[422350362,1778862647000,-150.0,0.00014793,2]
[422350366,1778862647000,-150.0,0.0001482,2]
[422350364,1778862647000,-150.0,0.00014808,2]
[422350367,1778862647000,-291.45559293,0.0001482,2]
[422350369,1778862647000,-291.45559293,0.00014835,2]
[422350371,1778862647000,-150.0,0.00014844,2]
[422350370,1778862647000,-150.0,0.00014841,2]
[422350368,1778862647000,-150.0,0.00014823,2]
[422350372,1778862647000,-150.0,0.00014844,2]
[422350365,1778862647000,-150.0,0.00014808,2]
[422350378,1778862647000,-150.0,0.00014879,2]
[422350373,1778862647000,-29964.16918207,0.0001485,2]
[422350382,1778862647000,-291.45559293,0.0001488,2]
[422350381,1778862647000,-200.0,0.0001488,2]
[422350384,1778862647000,-150.0,0.0001489,2]
[422350383,1778862647000,-150.0,0.00014889,2]
[422350380,1778862647000,-150.0,0.00014879,2]
[422350376,1778862647000,-291.45559293,0.00014865,2]
[422350379,1778862647000,-150.0,0.00014879,2]
[422350377,1778862647000,-469.94,0.00014876,2]
[422350375,1778862647000,-150.0,0.00014856,2]
[422350374,1778862647000,-291.45559293,0.0001485,2]
[422350436,1778862648000,-506.14328985,0.00014999,2]
[422350431,1778862648000,-156.6761228,0.00014994,2]
[422350434,1778862648000,-500.0,0.00014999,2]
[422350433,1778862648000,-500.0,0.00014999,2]
[422350435,1778862648000,-500.0,0.00014999,2]
[422350439,1778862648000,-881.05,0.00014999,2]
[422350441,1778862648000,-881.05,0.00014999,2]
[422350438,1778862648000,-881.05,0.00014999,2]
[422350447,1778862648000,-881.05,0.00014999,2]
[422350448,1778862648000,-881.05,0.00014999,2]
[422350444,1778862648000,-881.05,0.00014999,2]
[422350445,1778862648000,-881.05,0.00014999,2]
[422350442,1778862648000,-881.05,0.00014999,2]
[422350443,1778862648000,-881.05,0.00014999,2]
[422350432,1778862648000,-151.0,0.00014997,2]
[422350446,1778862648000,-881.05,0.00014999,2]
[422350440,1778862648000,-881.05,0.00014999,2]
[422350429,1778862648000,-857.79700656,0.0001499,2]
[422350416,1778862648000,-689.73790928,0.0001497,2]
[422350428,1778862648000,-150.0,0.0001499,2]
[422350450,1778862648000,-881.05,0.00014999,2]
[422350414,1778862648000,-500.0,0.0001497,2]
[422350412,1778862648000,-500.0,0.0001497,2]
[422350413,1778862648000,-500.0,0.0001497,2]
[422350411,1778862648000,-1215.46028509,0.0001497,2]
[422350415,1778862648000,-500.0,0.0001497,2]
[422350421,1778862648000,-229.98198188,0.00014986,2]
[422350418,1778862648000,-1000.0,0.0001497,2]
[422350425,1778862648000,-291.45559293,0.00014986,2]
[422350419,1778862648000,-291.45559293,0.00014971,2]
[422350417,1778862648000,-500.0,0.0001497,2]
[422350423,1778862648000,-204.41834298,0.00014986,2]
[422350422,1778862648000,-150.0,0.00014986,2]
[422350424,1778862648000,-150.0,0.00014986,2]
[422350420,1778862648000,-150.0,0.00014986,2]
[422350426,1778862648000,-287.11416309,0.00014986,2]
[422350427,1778862648000,-275.90606938,0.00014986,2]
[422350430,1778862648000,-857.79700656,0.0001499,2]
[422350449,1778862648000,-881.05,0.00014999,2]
[422350437,1778862648000,-500.0,0.00014999,8]
[422350453,1778862648000,-881.05,0.00014999,2]
[422350473,1778862648000,-500.0,0.00014999,2]
[422350477,1778862648000,-300.0,0.00014999,2]
[422350475,1778862648000,-300.0,0.00014999,2]
[422350474,1778862648000,-300.0,0.00014999,2]
[422350472,1778862648000,-500.0,0.00014999,2]
[422350480,1778862648000,-300.0,0.00014999,2]
[422350478,1778862648000,-666.0,0.00014999,2]
[422350476,1778862648000,-666.0,0.00014999,2]
[422350482,1778862648000,-300.0,0.00014999,2]
[422350479,1778862648000,-300.0,0.00014999,2]
[422350484,1778862648000,-666.0,0.00014999,2]
[422350488,1778862648000,-339.04,0.00015,2]
[422350485,1778862648000,-300.0,0.00014999,2]
[422350490,1778862648000,-8082.43942848,0.00015,2]
[422350486,1778862648000,-4587812.38069042,0.00015,2]
[422350489,1778862648000,-3144.531642,0.00015,14]
[422350491,1778862648000,-4065562.4497076,0.00015,2]
[422350483,1778862648000,-300.0,0.00014999,2]
[422350470,1778862648000,-500.0,0.00014999,2]
[422350481,1778862648000,-666.0,0.00014999,2]
[422350462,1778862648000,-1202.19,0.00014999,2]
[422350469,1778862648000,-500.0,0.00014999,2]
[422350455,1778862648000,-881.0547041,0.00014999,2]
[422350456,1778862648000,-1202.19,0.00014999,2]
[422350454,1778862648000,-881.05,0.00014999,2]
[422350451,1778862648000,-881.05,0.00014999,2]
[422350457,1778862648000,-1202.19,0.00014999,2]
[422350458,1778862648000,-1202.19,0.00014999,2]
[422350460,1778862648000,-1202.19,0.00014999,2]
[422350464,1778862648000,-1202.19,0.00014999,2]
[422350459,1778862648000,-1202.19,0.00014999,2]
[422350452,1778862648000,-881.05,0.00014999,2]
[422350461,1778862648000,-1202.19,0.00014999,2]
[422350466,1778862648000,-500.0,0.00014999,2]
[422350487,1778862648000,-2076.06689717,0.00015,2]
[422350463,1778862648000,-1202.19,0.00014999,2]
[422350465,1778862648000,-1202.28987748,0.00014999,2]
[422350468,1778862648000,-500.0,0.00014999,2]
[422350467,1778862648000,-500.0,0.00014999,2]
[422350471,1778862648000,-500.0,0.00014999,2]
[422350493,1778862649000,-208.98355677,0.00015,2]
[422350492,1778862649000,-366.5739184,0.00013698,2]
[422350494,1778862649000,-78999.99999999,0.00015,2]
[422350496,1778862650000,-350.2727242,0.00015,2]
[422350495,1778862650000,-297.47656531,0.00015,2]
[422350498,1778862650000,-53295.51097017,0.00015,2]
[422350500,1778862650000,-566.20673288,0.00015,2]
[422350499,1778862650000,-6020.35416184,0.00015,2]
[422350501,1778862650000,-7673.62693375,0.00015,2]
[422350497,1778862650000,-6320.0,0.00015,2]
[422350502,1778862691000,8302.5437624,0.00030137,120]
[422350504,1778862746000,10000.0,0.00030137,120]
[422350505,1778862749000,1799.046,0.00030136,120]
[422350506,1778862755000,10000.0,0.00030137,120]
[422350507,1778862763000,10000.0,0.00030137,120]
[422350508,1778862774000,10000.0,0.00030137,120]
[422350509,1778862788000,10000.0,0.00030137,120]
[422350510,1778862799000,10000.0,0.00030137,120]
[422350511,1778862808000,10000.0,0.00030137,120]
[422350512,1778862821000,9357.4,0.00030137,120]
[422350513,1778862991000,2412.10748934,0.00030137,120]
[422350514,1778863045000,164.999998,0.00030137,120]
[422350515,1778863223000,5139.7967583,0.00030136,120]
[422350517,1778863351000,223.09,6.816e-05,2]
[422350524,1778863831000,-348.05387296,0.00013016,2]
[422350560,1778863832000,-697.49,0.00013698,2]
[422350557,1778863832000,-697.49,0.00013698,2]
[422350559,1778863832000,-697.49,0.00013698,2]
[422350558,1778863832000,-697.49,0.00013698,2]
[422350554,1778863832000,-377.26990955,0.00013698,2]
[422350555,1778863832000,-697.49,0.00013698,2]
[422350563,1778863832000,-500.0,0.00013698,2]
[422350551,1778863832000,-623.71449761,0.00013698,2]
[422350553,1778863832000,-320.22009045,0.00013698,2]
[422350556,1778863832000,-697.49,0.00013698,2]
[422350576,1778863832000,-621.93,0.00013698,2]
[422350569,1778863832000,-500.0,0.00013698,2]
[422350552,1778863832000,-697.49,0.00013698,2]
[422350577,1778863832000,-621.93,0.00013698,2]
[422350574,1778863832000,-621.93,0.00013698,2]
[422350565,1778863832000,-500.0,0.00013698,2]
[422350567,1778863832000,-582.94577915,0.00013698,2]
[422350579,1778863832000,-621.93,0.00013698,2]
[422350578,1778863832000,-621.93,0.00013698,2]
[422350580,1778863832000,-621.93,0.00013698,2]
[422350583,1778863832000,-621.93,0.00013698,2]
[422350582,1778863832000,-621.93,0.00013698,2]
[422350581,1778863832000,-621.93,0.00013698,2]
[422350571,1778863832000,-621.93,0.00013698,2]
[422350549,1778863832000,-434.15984553,0.00013698,2]
[422350544,1778863832000,-697.49,0.00013698,2]
[422350545,1778863832000,-697.49,0.00013698,2]
[422350584,1778863832000,-621.93,0.00013698,2]
[422350525,1778863832000,-151.94612704,0.00013016,2]
[422350527,1778863832000,-207.82692704,0.00013016,3]
[422350526,1778863832000,-292.17307296,0.00013016,3]
[422350528,1778863832000,-2000.0,0.00013318,2]
[422350529,1778863832000,-255.02,0.00013328,2]
[422350531,1778863832000,-171.57,0.00013357,2]
[422350532,1778863832000,-223.09,0.00013364,2]
[422350534,1778863832000,-300.0,0.00013473,2]
[422350533,1778863832000,-388.5,0.00013384,2]
[422350530,1778863832000,-159.94,0.00013348,2]
[422350535,1778863832000,-1200.0,0.00013473,2]
[422350539,1778863832000,-165.34049564,0.00013474,2]
[422350538,1778863832000,-500.0,0.00013474,2]
[422350536,1778863832000,-500.0,0.00013474,2]
[422350537,1778863832000,-500.0,0.00013474,2]
[422350541,1778863832000,-150.0,0.00013697,2]
[422350542,1778863832000,-500.0,0.00013698,2]
[422350543,1778863832000,-500.0,0.00013698,2]
[422350540,1778863832000,-267.42,0.00013551,2]
[422350548,1778863832000,-263.33015447,0.00013698,2]
[422350547,1778863832000,-296.59843812,0.00013698,2]
[422350546,1778863832000,-400.89156188,0.00013698,2]
[422350550,1778863832000,-73.77550239,0.00013698,2]
[422350589,1778863832000,-500.0,0.00013698,2]
[422350637,1778863832000,-300.0,0.00014318,2]
[422350586,1778863832000,-621.93,0.00013698,2]
[422350616,1778863832000,-214.997284,0.00013797,2]
[422350615,1778863832000,-367.18619809,0.00013748,2]
[422350623,1778863832000,-469.94,0.00014083,2]
[422350617,1778863832000,-160.0,0.00013803,2]
[422350622,1778863832000,-500.0,0.00014022,2]
[422350618,1778863832000,-166.66,0.00013851,2]
[422350619,1778863832000,-200.0,0.00013897,2]
[422350620,1778863832000,-250.0,0.00014,2]
[422350625,1778863832000,-166.66,0.00014155,2]
[422350621,1778863832000,-166.66,0.00014003,2]
[422350624,1778863832000,-469.94,0.00014149,2]
[422350631,1778863832000,-2500.0,0.00014318,2]
[422350630,1778863832000,-166.66,0.00014308,2]
[422350629,1778863832000,-500.0,0.00014296,2]
[422350632,1778863832000,-2500.0,0.00014318,2]
[422350627,1778863832000,-300.0,0.00014219,2]
[422350628,1778863832000,-469.94,0.00014282,2]
[422350633,1778863832000,-2500.0,0.00014318,2]
[422350635,1778863832000,-300.0,0.00014318,2]
[422350634,1778863832000,-2500.0,0.00014318,2]
[422350636,1778863832000,-300.0,0.00014318,2]
[422350638,1778863832000,-300.0,0.00014318,2]
[422350587,1778863832000,-500.0,0.00013698,2]
[422350611,1778863832000,-500.0,0.00013748,2]
[422350610,1778863832000,-621.93,0.00013732,2]
[422350626,1778863832000,-469.94,0.00014216,2]
[422350612,1778863832000,-330.50441725,0.00013748,2]
[422350585,1778863832000,-621.93,0.00013698,2]
[422350614,1778863832000,-186.80573571,0.00013748,2]
[422350591,1778863832000,-500.0,0.00013698,2]
[422350588,1778863832000,-500.0,0.00013698,2]
[422350590,1778863832000,-500.0,0.00013698,2]
[422350593,1778863832000,-500.0,0.00013698,2]
[422350603,1778863832000,-500.0,0.00013698,2]
[422350592,1778863832000,-500.0,0.00013698,2]
[422350596,1778863832000,-500.0,0.00013698,2]
[422350599,1778863832000,-500.0,0.00013698,2]
[422350595,1778863832000,-431.69745624,0.00013698,2]
[422350598,1778863832000,-500.0,0.00013698,2]
[422350639,1778863832000,-300.0,0.00014318,2]
[422350609,1778863832000,-697.49,0.00013732,2]
[422350601,1778863832000,-500.0,0.00013698,2]
[422350600,1778863832000,-500.0,0.00013698,2]
[422350597,1778863832000,-500.0,0.00013698,2]
[422350602,1778863832000,-500.0,0.00013698,2]
[422350604,1778863832000,-500.0,0.00013698,2]
[422350605,1778863832000,-500.0,0.00013698,2]
[422350606,1778863832000,-166.66,0.00013699,2]
[422350594,1778863832000,-500.0,0.00013698,2]
[422350607,1778863832000,-719.64,0.00013699,2]
[422350608,1778863832000,-163.19,0.000137,2]
[422350613,1778863832000,-1134.9893546,0.00013748,2]
[422350676,1778863833000,-2117.60927505,0.00014667,2]
[422350677,1778863833000,-165.79056391,0.00014676,2]
[422350675,1778863833000,-152.0,0.00014666,7]
[422350674,1778863833000,-152.0,0.00014666,7]
[422350671,1778863833000,-5000.0,0.0001465,2]
[422350665,1778863833000,-500.0,0.00014542,2]
[422350672,1778863833000,-974.25148058,0.00014651,2]
[422350673,1778863833000,-167.12947969,0.00014666,2]
[422350678,1778863833000,-171.57,0.00014693,2]
[422350669,1778863833000,-2117.60927505,0.000146,2]
[422350668,1778863833000,-500.0,0.0001457,2]
[422350670,1778863833000,-2117.60927505,0.00014633,2]
[422350683,1778863833000,-9233.85867884,0.000147,2]
[422350685,1778863833000,-320.0,0.00014712,2]
[422350680,1778863833000,-10000.0,0.000147,2]
[422350682,1778863833000,-1638.34703999,0.000147,2]
[422350679,1778863833000,-5000.0,0.00014699,2]
[422350684,1778863833000,-2725.34111454,0.000147,2]
[422350690,1778863833000,-500.0,0.00014749,2]
[422350687,1778863833000,-2117.60927505,0.00014733,2]
[422350688,1778863833000,-915.2512116,0.0001474,2]
[422350686,1778863833000,-500.0,0.00014733,2]
[422350689,1778863833000,-426.17237592,0.00014749,2]
[422350691,1778863833000,-500.0,0.00014749,2]
[422350692,1778863833000,-500.0,0.00014749,2]
[422350681,1778863833000,-2117.60927505,0.000147,2]
[422350693,1778863833000,-500.0,0.00014749,2]
[422350641,1778863833000,-300.0,0.00014318,2]
[422350667,1778863833000,-267.18441959,0.00014542,2]
[422350695,1778863833000,-500.0,0.00014749,2]
[422350640,1778863833000,-2500.0,0.00014318,2]
[422350642,1778863833000,-300.0,0.00014318,2]
[422350643,1778863833000,-294.75451596,0.00014318,2]
[422350649,1778863833000,-500.0,0.00014542,2]
[422350645,1778863833000,-469.94784303,0.00014348,2]
[422350647,1778863833000,-500.0,0.00014542,2]
[422350644,1778863833000,-162.51448649,0.00014318,2]
[422350646,1778863833000,-166.66,0.0001446,2]
[422350648,1778863833000,-500.0,0.00014542,2]
[422350651,1778863833000,-500.0,0.00014542,2]
[422350650,1778863833000,-500.0,0.00014542,2]
[422350661,1778863833000,-500.0,0.00014542,2]
[422350652,1778863833000,-500.0,0.00014542,2]
[422350654,1778863833000,-500.0,0.00014542,2]
[422350659,1778863833000,-500.0,0.00014542,2]
[422350660,1778863833000,-500.0,0.00014542,2]
[422350653,1778863833000,-500.0,0.00014542,2]
[422350658,1778863833000,-500.0,0.00014542,2]
[422350655,1778863833000,-500.0,0.00014542,2]
[422350657,1778863833000,-500.0,0.00014542,2]
[422350656,1778863833000,-500.0,0.00014542,2]
[422350662,1778863833000,-500.0,0.00014542,2]
[422350664,1778863833000,-500.0,0.00014542,2]
[422350663,1778863833000,-500.0,0.00014542,2]
[422350666,1778863833000,-500.0,0.00014542,2]
[422350696,1778863833000,-500.0,0.00014749,2]
[422350725,1778863833000,-500.0,0.00014749,2]
[422350698,1778863833000,-500.0,0.00014749,2]
[422350728,1778863833000,-500.0,0.00014749,2]
[422350729,1778863833000,-500.0,0.00014749,2]
[422350732,1778863833000,-500.0,0.00014749,2]
[422350731,1778863833000,-500.0,0.00014749,2]
[422350734,1778863833000,-500.0,0.00014749,2]
[422350738,1778863833000,-500.0,0.00014749,2]
[422350739,1778863833000,-500.0,0.00014749,2]
[422350736,1778863833000,-500.0,0.00014749,2]
[422350735,1778863833000,-542.56640835,0.00014749,2]
[422350737,1778863833000,-500.0,0.00014749,2]
[422350740,1778863833000,-500.0,0.00014749,2]
[422350741,1778863833000,-434.22704327,0.00014749,2]
[422350743,1778863833000,-500.0,0.00014749,2]
[422350744,1778863833000,-227.90539732,0.00014749,2]
[422350742,1778863833000,-500.0,0.00014749,2]
[422350745,1778863833000,-500.0,0.00014749,2]
[422350748,1778863833000,-500.0,0.00014749,2]
[422350750,1778863833000,-500.0,0.00014749,2]
[422350746,1778863833000,-500.0,0.00014749,2]
[422350747,1778863833000,-500.0,0.00014749,2]
[422350751,1778863833000,-500.0,0.00014749,2]
[422350749,1778863833000,-500.0,0.00014749,2]
[422350752,1778863833000,-500.0,0.00014749,2]
[422350753,1778863833000,-500.0,0.00014749,2]
[422350694,1778863833000,-500.0,0.00014749,2]
[422350727,1778863833000,-500.0,0.00014749,2]
[422350723,1778863833000,-500.0,0.00014749,2]
[422350733,1778863833000,-500.0,0.00014749,2]
[422350724,1778863833000,-500.0,0.00014749,2]
[422350700,1778863833000,-500.0,0.00014749,2]
[422350697,1778863833000,-500.0,0.00014749,2]
[422350699,1778863833000,-500.0,0.00014749,2]
[422350702,1778863833000,-500.0,0.00014749,2]
[422350703,1778863833000,-500.0,0.00014749,2]
[422350701,1778863833000,-500.0,0.00014749,2]
[422350721,1778863833000,-500.0,0.00014749,2]
[422350705,1778863833000,-500.0,0.00014749,2]
[422350704,1778863833000,-500.0,0.00014749,2]
[422350707,1778863833000,-500.0,0.00014749,2]
[422350708,1778863833000,-500.0,0.00014749,2]
[422350710,1778863833000,-500.0,0.00014749,2]
[422350711,1778863833000,-500.0,0.00014749,2]
[422350706,1778863833000,-500.0,0.00014749,2]
[422350715,1778863833000,-500.0,0.00014749,2]
[422350709,1778863833000,-500.0,0.00014749,2]
[422350726,1778863833000,-500.0,0.00014749,2]
[422350722,1778863833000,-500.0,0.00014749,2]
[422350719,1778863833000,-500.0,0.00014749,2]
[422350720,1778863833000,-500.0,0.00014749,2]
[422350730,1778863833000,-500.0,0.00014749,2]
[422350714,1778863833000,-500.0,0.00014749,2]
[422350713,1778863833000,-500.0,0.00014749,2]
[422350717,1778863833000,-500.0,0.00014749,2]
[422350712,1778863833000,-500.0,0.00014749,2]
[422350716,1778863833000,-500.0,0.00014749,2]
[422350718,1778863833000,-500.0,0.00014749,2]
[422350775,1778863834000,-500.0,0.00014799,2]
[422350762,1778863834000,-500.0,0.00014799,2]
[422350764,1778863834000,-209.38361852,0.00014799,2]
[422350765,1778863834000,-500.0,0.00014799,2]
[422350763,1778863834000,-500.0,0.00014799,2]
[422350754,1778863834000,-150.0,0.00014749,2]
[422350756,1778863834000,-621.93,0.00014751,2]
[422350758,1778863834000,-514.965,0.00014772,2]
[422350761,1778863834000,-500.0,0.00014799,2]
[422350759,1778863834000,-500.0,0.00014789,2]
[422350757,1778863834000,-2117.60927505,0.00014767,2]
[422350755,1778863834000,-697.49,0.00014751,2]
[422350766,1778863834000,-246.51011126,0.00014799,2]
[422350760,1778863834000,-274.38185256,0.00014799,2]
[422350777,1778863834000,-526.65,0.00014799,2]
[422350767,1778863834000,-500.0,0.00014799,2]
[422350782,1778863834000,-500.0,0.00014799,2]
[422350783,1778863834000,-500.0,0.00014799,2]
[422350780,1778863834000,-500.0,0.00014799,2]
[422350784,1778863834000,-340537.16315136,0.000148,2]
[422350779,1778863834000,-500.0,0.00014799,2]
[422350778,1778863834000,-500.0,0.00014799,2]
[422350774,1778863834000,-500.0,0.00014799,2]